[Event "9e Open International de Porticcio"]
[Site "Porticcio, France"]
[Date "2024.07.02"]
[Round "6.6"]
[White "Roux, Baptiste"]
[Black "Lagarde, Maxime"]
[Result "0-1"]
[TimeControl "1h30+30s/move"]
[WhiteElo "2352"]
[BlackElo "2604"]

1. e4 {[%clk 01:30:17]} {[%emt 00:00:43]} e6 {[%clk 01:30:56]} {[%emt
00:00:04]} 2. d4 {[%clk 01:30:27]} {[%emt 00:00:20]} d5 {[%clk 01:31:22]}
{[%emt 00:00:04]} 3. Nd2 {[%clk 01:29:03]} {[%emt 00:01:55]} c5 {[%clk
01:31:43]} {[%emt 00:00:08]} 4. exd5 {[%clk 01:28:46]} {[%emt 00:00:47]} exd5
{[%clk 01:31:34]} {[%emt 00:00:39]} 5. Bb5+ {[%clk 01:26:51]} {[%emt 00:02:25]}
Bd7 {[%clk 01:31:57]} {[%emt 00:00:07]} 6. Qe2+ {[%clk 01:25:35]} {[%emt
00:01:46]} Be7 {[%clk 01:32:16]} {[%emt 00:00:11]} 7. dxc5 {[%clk 01:24:55]}
{[%emt 00:01:11]} Nf6 {[%clk 01:32:31]} {[%emt 00:00:14]} 8. Ngf3 {[%clk
01:14:07]} {[%emt 00:11:18]} O-O {[%clk 01:32:53]} {[%emt 00:00:08]} 9. O-O
{[%clk 01:13:32]} {[%emt 00:01:05]} Re8 {[%clk 01:31:21]} {[%emt 00:02:01]} 10.
Bxd7 {[%clk 01:13:42]} {[%emt 00:00:22]} Nbxd7 {[%clk 01:31:37]} {[%emt
00:00:14]} 11. Nb3 {[%clk 01:10:54]} {[%emt 00:03:17]} Bxc5 {[%clk 01:31:01]}
{[%emt 00:01:06]} 12. Qd3 {[%clk 01:05:35]} {[%emt 00:05:49]} Bb6 {[%clk
01:31:14]} {[%emt 00:00:17]} 13. Bg5 {[%clk 01:03:00]} {[%emt 00:03:04]} h6
{[%clk 01:27:05]} {[%emt 00:04:40]} 14. Bh4 {[%clk 01:02:31]} {[%emt 00:00:59]}
Re4 {[%clk 01:27:24]} {[%emt 00:00:10]} 15. Bg3 {[%clk 00:58:54]} {[%emt
00:04:07]} Qe7 {[%clk 01:14:53]} {[%emt 00:13:01]} 16. Rfe1 {[%clk 00:48:28]}
{[%emt 00:10:56]} Nc5 {[%clk 01:08:49]} {[%emt 00:06:34]} 17. Nxc5 {[%clk
00:45:41]} {[%emt 00:03:18]} Bxc5 {[%clk 01:04:39]} {[%emt 00:04:40]} 18. Kf1
{[%clk 00:42:53]} {[%emt 00:03:18]} Re8 {[%clk 01:03:21]} {[%emt 00:01:49]} 19.
c3 {[%clk 00:41:48]} {[%emt 00:01:35]} Qe6 {[%clk 00:53:35]} {[%emt 00:10:16]}
20. h3 {[%clk 00:28:51]} {[%emt 00:13:27]} a6 {[%clk 00:49:29]} {[%emt
00:04:36]} 21. Rad1 {[%clk 00:23:16]} {[%emt 00:06:05]} Qf5 {[%clk 00:46:55]}
{[%emt 00:03:04]} 22. Qd2 {[%clk 00:18:31]} {[%emt 00:05:16]} Rxe1+ {[%clk
00:40:16]} {[%emt 00:07:09]} 23. Nxe1 {[%clk 00:15:32]} {[%emt 00:03:28]} Ne4
{[%clk 00:30:27]} {[%emt 00:10:20]} 24. Qf4 {[%clk 00:15:55]} {[%emt 00:00:07]}
Qe6 {[%clk 00:30:03]} {[%emt 00:00:54]} 25. Kg1 {[%clk 00:14:26]} {[%emt
00:01:58]} g5 {[%clk 00:29:05]} {[%emt 00:01:28]} 26. Qf3 {[%clk 00:09:19]}
{[%emt 00:05:38]} Nd2 {[%clk 00:29:13]} {[%emt 00:00:22]} 0-1

[Event "9e Open International de Porticcio"]
[Site "Porticcio, France"]
[Date "2024.07.02"]
[Round "6.7"]
[White "Roebers, Eline"]
[Black "Hamdouchi, Hicham"]
[Result "0-1"]
[TimeControl "1h30+30s/move"]
[WhiteElo "2326"]
[BlackElo "2527"]

1. e4 {[%clk 01:30:58]} {[%emt 00:00:02]} c5 {[%clk 01:30:48]} {[%emt
00:00:12]} 2. Nf3 {[%clk 01:31:25]} {[%emt 00:00:04]} e6 {[%clk 01:31:11]}
{[%emt 00:00:07]} 3. d4 {[%clk 01:31:52]} {[%emt 00:00:03]} cxd4 {[%clk
01:31:32]} {[%emt 00:00:08]} 4. Nxd4 {[%clk 01:32:19]} {[%emt 00:00:03]} Nc6
{[%clk 01:31:45]} {[%emt 00:00:18]} 5. Nc3 {[%clk 01:32:45]} {[%emt 00:00:04]}
Qc7 {[%clk 01:31:57]} {[%emt 00:00:18]} 6. Be2 {[%clk 01:32:00]} {[%emt
00:01:15]} a6 {[%clk 01:29:09]} {[%emt 00:03:18]} 7. O-O {[%clk 01:32:07]}
{[%emt 00:00:22]} Nf6 {[%clk 01:28:25]} {[%emt 00:01:13]} 8. Be3 {[%clk
01:32:19]} {[%emt 00:00:18]} d6 {[%clk 01:27:13]} {[%emt 00:01:42]} 9. a3
{[%clk 01:31:53]} {[%emt 00:00:56]} Bd7 {[%clk 01:24:04]} {[%emt 00:03:38]} 10.
f4 {[%clk 01:29:32]} {[%emt 00:02:52]} Be7 {[%clk 01:21:45]} {[%emt 00:02:49]}
11. Qe1 {[%clk 01:28:21]} {[%emt 00:01:42]} Rc8 {[%clk 01:18:53]} {[%emt
00:03:22]} 12. Qg3 {[%clk 01:26:36]} {[%emt 00:02:14]} g6 {[%clk 01:17:08]}
{[%emt 00:02:15]} 13. Kh1 {[%clk 01:14:55]} {[%emt 00:12:12]} h5 {[%clk
01:16:16]} {[%emt 00:01:22]} 14. f5 {[%clk 01:10:21]} {[%emt 00:05:05]} gxf5
{[%clk 01:12:10]} {[%emt 00:04:35]} 15. exf5 {[%clk 01:08:25]} {[%emt
00:02:26]} Nxd4 {[%clk 01:12:11]} {[%emt 00:00:29]} 16. Bxd4 {[%clk 01:06:52]}
{[%emt 00:02:04]} e5 {[%clk 01:12:29]} {[%emt 00:00:11]} 17. Be3 {[%clk
01:05:38]} {[%emt 00:01:44]} Bc6 {[%clk 01:12:11]} {[%emt 00:00:48]} 18. Bf3
{[%clk 00:59:40]} {[%emt 00:06:29]} Rg8 {[%clk 01:12:09]} {[%emt 00:00:32]} 19.
Qh4 {[%clk 00:59:35]} {[%emt 00:00:35]} Bxf3 {[%clk 00:57:24]} {[%emt
00:15:15]} 20. Rxf3 {[%clk 00:59:31]} {[%emt 00:00:34]} Rg4 {[%clk 00:57:47]}
{[%emt 00:00:07]} 21. Qe1 {[%clk 00:54:02]} {[%emt 00:05:59]} d5 {[%clk
00:57:29]} {[%emt 00:00:47]} 22. h3 {[%clk 00:54:08]} {[%emt 00:00:25]} Rg8
{[%clk 00:54:57]} {[%emt 00:03:02]} 23. Qh4 {[%clk 00:50:41]} {[%emt 00:03:57]}
e4 {[%clk 00:41:05]} {[%emt 00:14:22]} 24. Rf4 {[%clk 00:48:11]} {[%emt
00:03:00]} Qe5 {[%clk 00:36:53]} {[%emt 00:04:42]} 25. Qf2 {[%clk 00:41:41]}
{[%emt 00:07:00]} Bd6 {[%emt 00:01:49]} 26. Rd1 {[%clk 00:41:11]} {[%emt
00:00:55]} Rc4 {[%clk 00:35:33]} {[%emt 00:00:36]} 27. g3 {[%clk 00:36:13]}
{[%emt 00:05:28]} Rxc3 {[%clk 00:30:23]} {[%emt 00:05:40]} 28. bxc3 {[%clk
00:30:58]} {[%emt 00:05:45]} Qxc3 {[%clk 00:30:45]} {[%emt 00:00:08]} 29. Bd4
{[%clk 00:28:17]} {[%emt 00:03:11]} Qxg3 {[%clk 00:30:33]} {[%emt 00:00:42]} 30.
Qxg3 {[%clk 00:28:04]} {[%emt 00:00:43]} Rxg3 {[%emt 00:00:11]} 31. Rh4 {[%clk
00:27:06]} {[%emt 00:01:19]} Be7 {[%clk 00:30:59]} {[%emt 00:00:31]} 32. a4
{[%clk 00:25:45]} {[%emt 00:01:52]} Ra3 {[%clk 00:27:52]} {[%emt 00:03:36]} 33.
c4 {[%clk 00:25:08]} {[%emt 00:01:07]} Rd3 {[%clk 00:27:30]} {[%emt 00:00:52]}
34. Rxd3 {[%clk 00:20:11]} {[%emt 00:05:28]} exd3 {[%clk 00:27:49]} {[%emt
00:00:10]} 35. Rf4 {[%clk 00:20:26]} {[%emt 00:00:16]} d2 {[%clk 00:25:23]}
{[%emt 00:02:56]} 36. Rf1 {[%clk 00:20:33]} {[%emt 00:00:22]} dxc4 {[%clk
00:25:50]} {[%emt 00:00:04]} 37. Kg2 {[%clk 00:19:29]} {[%emt 00:01:34]} Ne4
{[%clk 00:24:39]} {[%emt 00:01:41]} 38. Kf3 {[%clk 00:19:53]} {[%emt 00:00:06]}
c3 {[%clk 00:24:53]} {[%emt 00:00:16]} 39. Kxe4 {[%clk 00:20:12]} {[%emt
00:00:10]} c2 {[%clk 00:25:17]} {[%emt 00:00:06]} 0-1

[Event "9e Open International de Porticcio"]
[Site "Porticcio, France"]
[Date "2024.07.02"]
[Round "6.8"]
[White "Anwesh, Upadhyaya"]
[Black "Priansh Das"]
[Result "1-0"]
[TimeControl "1h30+30s/move"]
[WhiteElo "2354"]
[BlackElo "2263"]

1. d4 {[%clk 01:22:30]} {[%emt 00:08:29]} Nf6 {[%clk 01:30:54]} {[%emt
00:00:07]} 2. c4 {[%clk 01:22:43]} {[%emt 00:00:17]} g6 {[%clk 01:31:18]}
{[%emt 00:00:06]} 3. g3 {[%clk 01:22:52]} {[%emt 00:00:22]} Bg7 {[%clk
01:31:35]} {[%emt 00:00:12]} 4. Bg2 {[%clk 01:23:13]} {[%emt 00:00:08]} O-O
{[%clk 01:31:56]} {[%emt 00:00:10]} 5. Nc3 {[%clk 01:23:30]} {[%emt 00:00:13]}
d6 {[%clk 01:32:17]} {[%emt 00:00:10]} 6. Nf3 {[%clk 01:23:50]} {[%emt
00:00:09]} Nbd7 {[%clk 01:31:29]} {[%emt 00:01:19]} 7. O-O {[%clk 01:23:58]}
{[%emt 00:00:21]} c6 {[%clk 01:31:24]} {[%emt 00:00:36]} 8. e4 {[%clk
01:23:01]} {[%emt 00:01:27]} e5 {[%clk 01:31:42]} {[%emt 00:00:12]} 9. h3
{[%clk 01:23:14]} {[%emt 00:00:17]} Qc7 {[%clk 01:31:03]} {[%emt 00:01:09]} 10.
Re1 {[%clk 01:22:05]} {[%emt 00:01:39]} a5 {[%clk 01:30:18]} {[%emt 00:01:16]}
11. Be3 {[%clk 01:12:28]} {[%emt 00:10:07]} Re8 {[%clk 01:30:05]} {[%emt
00:00:43]} 12. d5 {[%clk 01:07:27]} {[%emt 00:05:30]} Nc5 {[%clk 01:28:30]}
{[%emt 00:02:05]} 13. Nd2 {[%clk 01:06:47]} {[%emt 00:01:11]} Bd7 {[%clk
01:14:20]} {[%emt 00:14:41]} 14. Bf1 {[%clk 01:03:30]} {[%emt 00:03:45]} Qb8
{[%clk 01:07:36]} {[%emt 00:07:14]} 15. a3 {[%clk 00:58:53]} {[%emt 00:05:07]}
cxd5 {[%emt 00:02:10]} 16. cxd5 {[%emt 00:04:52]} b5 {[%clk 01:00:17]} {[%emt
00:00:49]} 17. b4 axb4 {[%emt 00:02:02]} 18. axb4 {[%clk 00:59:19]} {[%emt
00:00:01]} Na4 {[%clk 00:58:57]} {[%emt 00:01:50]} 19. Nxa4 {[%clk 00:54:46]}
{[%emt 00:05:02]} Rxa4 {[%clk 00:57:38]} {[%emt 00:01:49]} 20. Qb1 {[%clk
00:49:48]} {[%emt 00:05:28]} Rxa1 {[%clk 00:51:16]} {[%emt 00:06:53]} 21. Qxa1
{[%clk 00:50:07]} {[%emt 00:00:10]} Qb7 {[%clk 00:51:15]} {[%emt 00:00:32]} 22.
Qb1 {[%emt 00:05:54]} Bf8 {[%clk 00:47:43]} {[%emt 00:00:15]} 23. Nb3 {[%clk
00:47:40]} {[%emt 00:01:19]} Be7 {[%clk 00:48:06]} {[%emt 00:00:08]} 24. Na5
{[%clk 00:47:01]} {[%emt 00:01:09]} Qa6 {[%clk 00:48:26]} {[%emt 00:00:10]} 25.
Qd3 {[%clk 00:44:41]} {[%emt 00:02:50]} Rc8 {[%clk 00:46:07]} {[%emt 00:02:49]}
26. Ra1 {[%clk 00:43:13]} {[%emt 00:01:57]} Bd8 {[%clk 00:44:51]} {[%emt
00:01:48]} 27. Ra3 {[%clk 00:38:19]} {[%emt 00:05:23]} Bxa5 {[%clk 00:42:17]}
{[%emt 00:03:04]} 28. Rxa5 {[%clk 00:36:53]} {[%emt 00:01:56]} Qb7 {[%clk
00:42:39]} {[%emt 00:00:08]} 29. Ra7 {[%clk 00:35:29]} {[%emt 00:01:55]} Qb8
{[%clk 00:42:52]} {[%emt 00:00:16]} 30. Qa3 {[%clk 00:33:52]} {[%emt 00:02:06]}
Kg7 {[%clk 00:40:41]} {[%emt 00:02:42]} 31. Qa6 {[%clk 00:22:06]} {[%emt
00:12:15]} Be8 {[%clk 00:37:57]} {[%emt 00:03:14]} 32. f3 {[%emt 00:06:14]} Rc3
{[%clk 00:35:12]} {[%emt 00:02:34]} 33. Kf2 {[%clk 00:17:17]} {[%emt 00:02:20]}
Qd8 {[%emt 00:04:02]} 34. Qb6 {[%emt 00:00:56]} Qc8 {[%emt 00:02:14]} 35. Qxd6
{[%clk 00:12:29]} {[%emt 00:03:39]} Rc2+ {[%clk 00:26:26]} {[%emt 00:03:11]} 36.
Kg1 {[%emt 00:01:07]} Nd7 {[%emt 00:05:42]} 37. Ra3 {[%clk 00:08:38]} {[%emt
00:01:51]} h5 {[%clk 00:19:00]} {[%emt 00:04:36]} 38. h4 {[%clk 00:07:45]}
{[%emt 00:01:23]} Kh7 {[%clk 00:16:39]} {[%emt 00:02:51]} 39. Qa6 {[%clk
00:06:27]} {[%emt 00:01:47]} Qd8 {[%clk 00:15:25]} {[%emt 00:01:45]} 40. Qxb5
{[%clk 00:06:22]} {[%emt 00:00:35]} Qf6 {[%clk 00:15:27]} {[%emt 00:00:28]} 41.
Qd3 {[%clk 00:03:52]} {[%emt 00:02:59]} Rb2 {[%clk 00:15:50]} {[%emt 00:00:08]}
42. Qc3 {[%clk 00:03:08]} {[%emt 00:01:13]} Rb1 {[%clk 00:16:14]} {[%emt
00:00:06]} 43. Bf2 {[%clk 00:02:42]} {[%emt 00:00:56]} Nb6 {[%clk 00:16:03]}
{[%emt 00:00:42]} 44. Rb3 {[%clk 00:02:08]} {[%emt 00:01:04]} Na4 {[%clk
00:15:43]} {[%emt 00:00:50]} 45. Qc2 {[%clk 00:02:17]} {[%emt 00:00:20]} Ra1
{[%clk 00:16:04]} {[%emt 00:00:10]} 46. b5 {[%clk 00:01:48]} {[%emt 00:00:59]}
Nb6 {[%clk 00:12:56]} {[%emt 00:03:38]} 47. Rb1 {[%clk 00:01:28]} {[%emt
00:00:50]} Ra3 {[%clk 00:12:29]} {[%emt 00:00:57]} 48. Rb3 {[%clk 00:01:51]}
{[%emt 00:00:06]} Ra1 {[%clk 00:12:43]} {[%emt 00:00:17]} 49. Kg2 {[%clk
00:02:11]} {[%emt 00:00:09]} Bd7 {[%clk 00:12:56]} {[%emt 00:00:18]} 50. Rb1
{[%clk 00:01:29]} {[%emt 00:01:11]} Ra3 {[%clk 00:12:32]} {[%emt 00:00:54]} 51.
Be2 {[%clk 00:01:42]} {[%emt 00:00:17]} Na4 {[%clk 00:11:05]} {[%emt 00:01:57]}
52. Rb3 {[%clk 00:01:19]} {[%emt 00:00:53]} Ra1 {[%clk 00:10:32]} {[%emt
00:01:03]} 53. b6 {[%clk 00:01:36]} {[%emt 00:00:14]} g5 {[%clk 00:10:41]}
{[%emt 00:00:20]} 54. hxg5 {[%clk 00:01:18]} {[%emt 00:00:47]} Qxg5 {[%clk
00:11:05]} {[%emt 00:00:06]} 55. Rb1 {[%clk 00:01:31]} {[%emt 00:00:18]} Rxb1
{[%clk 00:10:29]} {[%emt 00:01:06]} 56. Qxb1 {[%clk 00:01:56]} {[%emt
00:00:04]} Nc3 {[%clk 00:10:52]} {[%emt 00:00:06]} 57. Qb2 {[%clk 00:01:16]}
{[%emt 00:01:11]} Nxe2 {[%clk 00:10:57]} {[%emt 00:00:26]} 58. Qxe2 {[%clk
00:01:43]} {[%emt 00:00:03]} Qc1 {[%clk 00:11:19]} {[%emt 00:00:07]} 59. Qe1
{[%clk 00:01:00]} {[%emt 00:01:13]} Qb2 {[%clk 00:11:44]} {[%emt 00:00:05]} 60.
Qh1 {[%clk 00:00:48]} {[%emt 00:00:42]} Kg6 {[%clk 00:12:03]} {[%emt 00:00:12]}
61. Qh4 {[%clk 00:00:55]} {[%emt 00:00:22]} Qb1 {[%clk 00:12:14]} {[%emt
00:00:20]} 62. Qh1 {[%clk 00:00:39]} {[%emt 00:00:47]} Qb2 {[%clk 00:12:19]}
{[%emt 00:00:25]} 63. Qe1 {[%clk 00:00:46]} {[%emt 00:00:23]} f6 {[%clk
00:12:24]} {[%emt 00:00:25]} 64. d6 {[%clk 00:00:41]} {[%emt 00:00:35]} Kg7
{[%clk 00:11:06]} {[%emt 00:01:48]} 65. Qd1 {[%clk 00:00:46]} {[%emt 00:00:24]}
Qb5 {[%clk 00:11:20]} {[%emt 00:00:17]} 66. Qc2 {[%clk 00:00:43]} {[%emt
00:00:32]} Kg6 {[%clk 00:11:42]} {[%emt 00:00:08]} 67. f4 {[%clk 00:00:43]}
{[%emt 00:00:31]} exf4 {[%clk 00:09:46]} {[%emt 00:02:26]} 68. gxf4 {[%clk
00:01:06]} {[%emt 00:00:07]} f5 {[%clk 00:10:08]} {[%emt 00:00:08]} 69. Qc5
{[%clk 00:00:49]} {[%emt 00:00:47]} Qb1 {[%clk 00:09:34]} {[%emt 00:01:04]} 70.
Qd5 {[%clk 00:00:39]} {[%emt 00:00:40]} Kh6 {[%clk 00:09:36]} {[%emt 00:00:29]}
71. b7 {[%clk 00:00:37]} {[%emt 00:00:32]} h4 {[%clk 00:09:36]} {[%emt
00:00:30]} 72. Qe5 {[%clk 00:00:32]} {[%emt 00:00:35]} Qxb7 {[%clk 00:06:03]}
{[%emt 00:04:03]} 73. Qf6+ {[%clk 00:00:54]} {[%emt 00:00:08]} Kh7 {[%clk
00:06:28]} {[%emt 00:00:05]} 74. Qxh4+ {[%clk 00:01:14]} {[%emt 00:00:10]} Kg6
{[%clk 00:06:08]} {[%emt 00:00:50]} 75. Qg5+ {[%clk 00:01:38]} {[%emt
00:00:05]} Kf7 {[%clk 00:06:35]} {[%emt 00:00:04]} 76. Qh5+ {[%clk 00:01:16]}
{[%emt 00:00:52]} Kg8 {[%clk 00:06:59]} {[%emt 00:00:06]} 77. Qg6+ {[%clk
00:01:35]} {[%emt 00:00:12]} Kf8 {[%clk 00:07:24]} {[%emt 00:00:05]} 78. Qf6+
{[%clk 00:01:22]} {[%emt 00:00:42]} Kg8 {[%clk 00:07:49]} {[%emt 00:00:05]} 79.
Qd8+ {[%clk 00:01:35]} {[%emt 00:00:17]} Kf7 {[%clk 00:08:02]} {[%emt
00:00:16]} 80. Kh2 {[%clk 00:01:55]} {[%emt 00:00:12]} fxe4 {[%clk 00:08:07]}
{[%emt 00:00:25]} 81. Bd4 {[%clk 00:01:58]} {[%emt 00:00:27]} Ke6 {[%clk
00:08:31]} {[%emt 00:00:07]} 82. Qe7+ {[%clk 00:01:54]} {[%emt 00:00:34]} Kd5
{[%clk 00:08:43]} {[%emt 00:00:16]} 83. Qe5+ {[%clk 00:02:12]} {[%emt
00:00:14]} Kc4 {[%clk 00:09:09]} {[%emt 00:00:05]} 84. Qc5+ {[%clk 00:02:32]}
{[%emt 00:00:09]} Kb3 {[%clk 00:08:17]} {[%emt 00:01:22]} 85. f5 {[%clk
00:02:36]} {[%emt 00:00:26]} Bb5 {[%clk 00:07:22]} {[%emt 00:01:25]} 86. Qc3+
{[%clk 00:02:04]} {[%emt 00:01:02]} Ka4 {[%clk 00:07:48]} {[%emt 00:00:04]} 87.
Qc2+ {[%clk 00:01:31]} {[%emt 00:01:03]} Kb4 {[%clk 00:07:45]} {[%emt
00:00:34]} 88. Bc5+ {[%clk 00:01:40]} {[%emt 00:00:20]} Ka5 {[%clk 00:08:11]}
{[%emt 00:00:04]} 89. Qc3+ {[%clk 00:01:56]} {[%emt 00:00:14]} 1-0

[Event "9e Open International de Porticcio"]
[Site "Porticcio, France"]
[Date "2024.07.02"]
[Round "6.9"]
[White "Daulet, Alikhan"]
[Black "Don Ignazi, Pierre Ange"]
[Result "1-0"]
[TimeControl "1h30+30s/move"]
[WhiteElo "1877"]
[BlackElo "1870"]

1. d4 {[%clk 01:30:57]} {[%emt 00:00:02]} Nf6 {[%clk 01:30:37]} {[%emt
00:00:22]} 2. c4 {[%clk 01:31:22]} {[%emt 00:00:06]} g6 {[%clk 01:31:03]}
{[%emt 00:00:05]} 3. Nc3 {[%clk 01:31:48]} {[%emt 00:00:04]} Bg7 {[%clk
01:31:28]} {[%emt 00:00:05]} 4. e4 {[%clk 01:32:11]} {[%emt 00:00:06]} d6
{[%clk 01:31:52]} {[%emt 00:00:07]} 5. Be2 {[%clk 01:32:36]} {[%emt 00:00:04]}
O-O {[%clk 01:32:16]} {[%emt 00:00:06]} 6. Be3 {[%clk 01:33:03]} {[%emt
00:00:03]} e5 {[%clk 01:31:56]} {[%emt 00:00:50]} 7. d5 {[%clk 01:33:29]}
{[%emt 00:00:04]} Nbd7 {[%clk 01:32:07]} {[%emt 00:00:19]} 8. h4 {[%clk
01:33:51]} {[%emt 00:00:08]} h6 {[%clk 01:29:04]} {[%emt 00:03:32]} 9. g4
{[%clk 01:33:07]} {[%emt 00:01:14]} Ne8 {[%clk 01:27:27]} {[%emt 00:02:07]} 10.
Qd2 {[%clk 01:31:42]} {[%emt 00:01:55]} Kh7 {[%clk 01:27:30]} {[%emt 00:00:27]}
11. h5 {[%clk 01:30:49]} {[%emt 00:01:22]} g5 {[%clk 01:27:40]} {[%emt
00:00:20]} 12. Bd1 {[%clk 01:31:06]} {[%emt 00:00:13]} a5 {[%clk 01:26:00]}
{[%emt 00:02:10]} 13. Nge2 {[%clk 01:30:26]} {[%emt 00:01:08]} Nc5 {[%clk
01:25:33]} {[%emt 00:00:58]} 14. Nc1 {[%clk 01:29:52]} {[%emt 00:01:04]} Nf6
{[%clk 01:21:14]} {[%emt 00:04:50]} 15. f3 {[%clk 01:29:22]} {[%emt 00:01:00]}
Nfd7 {[%clk 01:21:39]} {[%emt 00:00:06]} 16. b3 {[%clk 01:29:36]} {[%emt
00:00:16]} Nb6 {[%clk 01:21:55]} {[%emt 00:00:14]} 17. Rb1 {[%clk 01:29:03]}
{[%emt 00:01:02]} Bd7 {[%clk 01:20:00]} {[%emt 00:02:25]} 18. Nd3 {[%clk
01:28:28]} {[%emt 00:01:05]} Nxd3+ {[%clk 01:17:50]} {[%emt 00:02:40]} 19. Qxd3
{[%clk 01:28:53]} {[%emt 00:00:06]} Qf6 {[%clk 01:04:54]} {[%emt 00:13:25]} 20.
Rh2 {[%clk 01:27:55]} {[%emt 00:01:27]} Rfb8 {[%clk 00:59:51]} {[%emt
00:05:33]} 21. Rc2 {[%clk 01:27:03]} {[%emt 00:01:23]} c5 {[%clk 00:59:38]}
{[%emt 00:00:43]} 22. dxc6 {[%clk 01:23:45]} {[%emt 00:03:48]} bxc6 {[%clk
00:59:55]} {[%emt 00:00:14]} 23. c5 {[%clk 01:14:37]} {[%emt 00:09:38]} dxc5
{[%clk 00:55:25]} {[%emt 00:04:59]} 24. Bxc5 {[%clk 01:15:03]} {[%emt
00:00:04]} Be6 {[%clk 00:46:02]} {[%emt 00:09:53]} 25. Ne2 {[%clk 01:07:13]}
{[%emt 00:08:20]} Rd8 {[%clk 00:40:20]} {[%emt 00:06:12]} 26. Qc3 {[%clk
01:06:43]} {[%emt 00:00:59]} Nd7 {[%clk 00:40:04]} {[%emt 00:00:47]} 27. Bf2
{[%clk 01:06:41]} {[%emt 00:00:30]} Bf8 {[%clk 00:39:28]} {[%emt 00:01:08]} 28.
Kf1 {[%clk 01:06:45]} {[%emt 00:00:25]} Rab8 {[%clk 00:28:21]} {[%emt
00:11:37]} 29. Ng3 {[%clk 01:04:56]} {[%emt 00:02:19]} Bb4 {[%clk 00:20:06]}
{[%emt 00:08:44]} 30. Qe3 {[%clk 01:04:51]} {[%emt 00:00:35]} c5 {[%clk
00:18:44]} {[%emt 00:01:54]} 31. Be2 {[%clk 01:04:02]} {[%emt 00:01:18]} Nb6
{[%clk 00:18:59]} {[%emt 00:00:15]} 32. Bb5 {[%clk 00:57:06]} {[%emt 00:07:27]}
Rdc8 {[%clk 00:16:01]} {[%emt 00:03:28]} 33. Qe2 {[%clk 00:56:07]} {[%emt
00:01:28]} Qf4 {[%clk 00:14:07]} {[%emt 00:02:24]} 34. Kg2 {[%clk 00:55:58]}
{[%emt 00:00:40]} Qf6 {[%clk 00:10:32]} {[%emt 00:04:04]} 35. Rd1 {[%clk
00:55:52]} {[%emt 00:00:35]} Qe7 {[%clk 00:06:13]} {[%emt 00:04:49]} 36. Nf1
{[%clk 00:53:47]} {[%emt 00:02:34]} Rd8 {[%clk 00:06:04]} {[%emt 00:00:40]} 37.
Ne3 {[%clk 00:53:05]} {[%emt 00:01:12]} Rxd1 {[%clk 00:06:13]} {[%emt
00:00:21]} 38. Qxd1 {[%clk 00:53:31]} {[%emt 00:00:04]} Rd8 {[%clk 00:06:28]}
{[%emt 00:00:15]} 39. Qa1 {[%clk 00:53:53]} {[%emt 00:00:07]} Qc7 {[%clk
00:05:06]} {[%emt 00:01:53]} 40. a3 {[%clk 00:52:45]} {[%emt 00:01:38]} Bd2
{[%clk 00:04:23]} {[%emt 00:01:13]} 41. Nf1 {[%clk 00:53:08]} {[%emt 00:00:07]}
Bf4 {[%clk 00:03:56]} {[%emt 00:00:57]} 42. Rxc5 {[%clk 00:53:31]} {[%emt
00:00:08]} Qb8 {[%clk 00:03:43]} {[%emt 00:00:38]} 43. Qc3 {[%clk 00:51:19]}
{[%emt 00:02:48]} Nd7 {[%clk 00:03:02]} {[%emt 00:01:11]} 44. Bxd7 {[%clk
00:51:32]} {[%emt 00:00:16]} Rxd7 {[%clk 00:03:23]} {[%emt 00:00:09]} 45. Be3
{[%clk 00:48:56]} {[%emt 00:03:06]} Qxb3 {[%clk 00:02:33]} {[%emt 00:01:21]} 46.
Qxb3 {[%clk 00:48:22]} {[%emt 00:01:05]} Bxb3 {[%clk 00:03:02]} {[%emt
00:00:01]} 47. Rxa5 {[%clk 00:47:44]} {[%emt 00:01:07]} Rd1 {[%clk 00:02:48]}
{[%emt 00:00:44]} 48. Rc5 {[%clk 00:47:31]} {[%emt 00:00:44]} Ra1 {[%clk
00:02:08]} {[%emt 00:01:09]} 49. Rc3 {[%clk 00:47:33]} {[%emt 00:00:28]} Rxa3
{[%clk 00:00:32]} {[%emt 00:02:07]} 50. Bf2 {[%clk 00:45:50]} {[%emt 00:02:12]}
Kg7 {[%clk 00:00:34]} {[%emt 00:00:28]} 51. Kg1 {[%clk 00:46:07]} {[%emt
00:00:13]} Kh7 {[%clk 00:00:40]} {[%emt 00:00:24]} 52. Bc5 {[%clk 00:46:16]}
{[%emt 00:00:21]} Ra5 {[%clk 00:00:32]} {[%emt 00:00:39]} 53. Bb4 {[%clk
00:46:42]} {[%emt 00:00:04]} Ra1 {[%clk 00:00:31]} {[%emt 00:00:31]} 54. Rxb3
{[%clk 00:47:07]} {[%emt 00:00:05]} Ra2 {[%clk 00:00:58]} {[%emt 00:00:03]} 55.
Rd3 {[%clk 00:46:57]} {[%emt 00:00:40]} Bc1 {[%clk 00:00:33]} {[%emt 00:00:55]}
56. Bd2 {[%clk 00:46:38]} {[%emt 00:00:48]} Bb2 {[%clk 00:00:58]} {[%emt
00:00:03]} 57. Be3 {[%clk 00:47:03]} {[%emt 00:00:08]} Ba1 {[%clk 00:01:21]}
{[%emt 00:00:07]} 58. Ng3 {[%clk 00:47:15]} {[%emt 00:00:19]} Bb2 {[%clk
00:01:30]} {[%emt 00:00:21]} 59. Nf5 {[%clk 00:47:34]} {[%emt 00:00:10]} Ba3
{[%clk 00:01:39]} {[%emt 00:00:21]} 60. Rd7 {[%clk 00:47:49]} {[%emt 00:00:15]}
Ra1+ {[%clk 00:02:05]} {[%emt 00:00:05]} 61. Kg2 {[%clk 00:48:16]} {[%emt
00:00:03]} Ra2+ {[%clk 00:02:26]} {[%emt 00:00:09]} 62. Kh3 {[%clk 00:48:40]}
{[%emt 00:00:04]} Bf8 {[%clk 00:01:59]} {[%emt 00:00:59]} 63. Rxf7+ {[%clk
00:49:03]} {[%emt 00:00:07]} Kh8 {[%clk 00:02:28]} 64. Rxf8+ {[%clk 00:49:26]}
{[%emt 00:00:08]} Kh7 {[%clk 00:02:58]} 65. Rf6 {[%clk 00:49:42]} {[%emt
00:00:14]} Re2 {[%clk 00:03:00]} {[%emt 00:00:28]} 66. Rxh6+ {[%clk 00:50:06]}
{[%emt 00:00:07]} Kg8 {[%clk 00:03:30]} 67. Bxg5 {[%clk 00:50:28]} {[%emt
00:00:08]} Kf8 {[%clk 00:03:45]} {[%emt 00:00:14]} 68. Rf6+ {[%clk 00:50:43]}
{[%emt 00:00:16]} Kg8 {[%clk 00:04:14]} {[%emt 00:00:01]} 69. h6 {[%clk
00:50:44]} {[%emt 00:00:28]} Kh8 {[%clk 00:04:43]} 70. Rf7 {[%clk 00:50:36]}
{[%emt 00:00:39]} Kg8 {[%clk 00:05:11]} {[%emt 00:00:02]} 71. h7+ {[%clk
00:50:58]} {[%emt 00:00:08]} 1-0